[Event "8th Mersin Open 2024"]
[Site "Mersin"]
[Date "2024.11.14"]
[Round "7"]
[White "Zerey, Demhat"]
[Black "Jinan Jomon"]
[Result "1-0"]
[ECO "D02"]
[WhiteElo "2194"]
[BlackElo "2342"]
[Annotator "RC"]
[PlyCount "108"]
[EventDate "2024.11.10"]
[EventType "swiss"]
[EventCountry "TUR"]
[SourceTitle "playchess.com"]
[Source "ChessBase"]
[SourceQuality "1"]
[TimeControl "5400+30"]

1. d4 {[%emt 0:01:00]} d5 {[%emt 0:01:00]} 2. Nf3 {[%emt 0:00:30]} Nf6 {[%emt 0:00:30]} 3. Bf4 {[%emt 0:00:00]} c5 {[%emt 0:00:00]} 4. e3 {[%emt 0:01:00]} Nc6 {[%emt 0:00:00]} 5. Nbd2 {[%emt 0:00:00]} cxd4 {[%emt 0:02:30]} 6. exd4 {[%emt 0:00:00]} Bf5 {[%emt 0:00:00]} 7. Bb5 {[%emt 0:00:30]} a6 {[%emt 0:14:00]} 8. Bxc6+ {[%emt 0:00:30]} bxc6 {[%emt 0:00:30]} 9. O-O {[%emt 0:04:30]} e6 {[%emt 0:03:30]} 10. c4 {[%emt 0:02:30]} dxc4 {[%emt 0:19:30]} 11. Qa4 {[%emt 0:04:30]} Qb6 {[%emt 0:07:30]} 12. Rfc1 {[%emt 0:18:30]} Nd5 {[%emt 0:09:30]} 13. Bg3 {[%emt 0:01:30]} Nb4 {[%emt 0:08:30]} 14. Nxc4 {[%emt 0:10:30]} Qb5 {[%emt 0:00:00]} 15. Qd1 {[%emt 0:07:30]} Rd8 {[%emt 0:02:00]} 16. a4 {[%emt 0:05:30]} Qb7 {[%emt 0:01:30]} 17. Qb3 {[%emt 0:07:30]} Be4 {[%emt 0:10:02]} 18. Ncd2 {[%emt 0:06:30]} Bd5 {[%emt 0:00:36]} 19. Qe3 {[%emt 0:00:30]} Be7 {[%emt 0:00:30]} 20. Ne4 {[%emt 0:00:30]} O-O {[%emt 0:01:17]} 21. Nc5 {[%emt 0:02:30]} Qa7 {[%emt 0:06:05]} 22. Ne5 {[%emt 0:02:30]} Rfe8 {[%emt 0:01:03]} 23. a5 {[%emt 0:02:30]} f6 {[%emt 0:00:30]} 24. Ned3 {[%emt 0:00:30]} Nxd3 {[%emt 0:01:14]} 25. Nxd3 {[%emt 0:04:39]} Qb7 {[%emt 0:02:17]} 26. Nf4 {[%emt 0:01:32]} Bf8 {[%emt 0:01:10]} 27. Nxd5 {[%emt 0:01:04]} Rxd5 {[%emt 0:03:09]} 28. Rc2 {[%emt 0:04:37]} Qd7 {[%emt 0:00:30]} 29. h3 {[%emt 0:00:30]} c5 {[%emt 0:00:46]} 30. Rac1 {[%emt 0:04:29]} Rxd4 {[%emt 0:00:33]} 31. Qe2 {[%emt 0:00:53]} Qb7 {[%emt 0:00:44]} 32. f3 {[%emt 0:01:18]} Ra4 {[%emt 0:02:00]} 33. Be1 {[%emt 0:00:26]} e5 {[%emt 0:02:02]} 34. Rc4 {[%emt 0:02:45]} Qb5 {[%emt 0:01:01]} 35. b3 {[%emt 0:01:19]} Ra3 {[%emt 0:00:47]} 36. Qd1 {[%emt 0:01:13]} Rxb3 {[%emt 0:00:12]} 37. Bf2 {[%emt 0:01:25]} Rb2 {[%emt 0:00:30]} 38. Qd5+ {[%emt 0:00:30]} Kh8 {[%emt 0:00:30]} 39. Qf7 {[%emt 0:00:30]} Rd8 {[%emt 0:01:11]} 40. Rh4 {[%emt 0:01:31]} Qe2 {[%emt 0:00:30]} 41. Rf1 {[%emt 0:00:30]} c4 {[%emt 0:00:30]} 42. Rxc4 {[%emt 0:00:30]} h6 {[%emt 0:00:30]} 43. Rg4 {[%emt 0:00:30]} Qc2 {[%emt 0:00:30]} 44. Kh2 {[%emt 0:00:30]} Qb3 {[%emt 0:00:46]} 45. Qg6 {[%emt 0:00:13]} Rdd2 {[%emt 0:00:28]} 46. Bc5 {[%emt 0:00:27]} Qb8 {[%emt 0:00:31]} 47. Be3 {[%emt 0:00:35]} Rd7 {[%emt 0:00:33]} 48. Rc1 {[%emt 0:00:30]} e4+ {[%emt 0:00:25]} 49. Bf4 {[%emt 0:00:44]} Bd6 {[%emt 0:00:00]} 50. Qxe4 {[%emt 0:00:08]} Bxf4+ {[%emt 0:01:06]} 51. Qxf4 {[%emt 0:00:10]} Qxf4+ {[%emt 0:00:51]} 52. Rxf4 {[%emt 0:00:01]} Rdd2 {[%emt 0:00:21]} 53. Rg4 {[%emt 0:00:04]} h5 {[%emt 0:00:40]} 54. Rg3 {[%emt 0:00:13]} Rd7 {[%emt 0:00:40]} 1-0

[Event "8th Mersin Open 2024"]
[Site "Mersin"]
[Date "2024.11.14"]
[Round "7"]
[White "Atis, Hasan"]
[Black "Gurbanov, Ismayil"]
[Result "1-0"]
[ECO "C72"]
[WhiteElo "2167"]
[BlackElo "2261"]
[Annotator "RC"]
[PlyCount "125"]
[EventDate "2024.11.10"]
[EventType "swiss"]
[EventCountry "TUR"]
[SourceTitle "playchess.com"]
[Source "ChessBase"]
[SourceQuality "1"]
[TimeControl "5400+30"]

1. e4 {[%emt 0:01:00]} e5 {[%emt 0:07:00]} 2. Nf3 {[%emt 0:00:30]} Nc6 {[%emt 0:00:30]} 3. Bb5 {[%emt 0:00:00]} a6 {[%emt 0:00:30]} 4. Ba4 {[%emt 0:00:00]} d6 {[%emt 0:00:00]} 5. O-O {[%emt 0:01:30]} Bd7 {[%emt 0:00:00]} 6. c3 {[%emt 0:00:30]} g5 {[%emt 0:00:00]} 7. d4 {[%emt 0:00:00]} g4 {[%emt 0:00:00]} 8. Ne1 {[%emt 0:00:00]} Bh6 {[%emt 0:00:00]} 9. Be3 {[%emt 0:11:30]} Bxe3 {[%emt 0:00:00]} 10. fxe3 {[%emt 0:00:00]} Qg5 {[%emt 0:00:30]} 11. Qe2 {[%emt 0:00:00]} O-O-O {[%emt 0:05:30]} 12. Nd2 {[%emt 0:01:30]} Nh6 {[%emt 0:00:30]} 13. Nc2 {[%emt 0:07:30]} Rhf8 {[%emt 0:07:30]} 14. b4 {[%emt 0:05:30]} f5 {[%emt 0:06:30]} 15. exf5 {[%emt 0:11:30]} Nxf5 {[%emt 0:00:30]} 16. e4 {[%emt 0:00:30]} Nh4 {[%emt 0:01:30]} 17. g3 {[%emt 0:13:30]} Ng6 {[%emt 0:15:30]} 18. d5 {[%emt 0:00:00]} Nb8 {[%emt 0:01:30]} 19. Bb3 {[%emt 0:00:00]} h5 {[%emt 0:01:30]} 20. Qe3 {[%emt 0:02:30]} Qe7 {[%emt 0:11:30]} 21. Qh6 {[%emt 0:02:30]} Rg8 {[%emt 0:06:30]} 22. Ne3 {[%emt 0:02:30]} h4 {[%emt 0:10:30]} 23. Nf5 {[%emt 0:01:30]} Bxf5 {[%emt 0:00:30]} 24. exf5 {[%emt 0:00:30]} hxg3 {[%emt 0:00:30]} 25. hxg3 {[%emt 0:09:30]} Nf8 {[%emt 0:02:30]} 26. f6 {[%emt 0:02:30]} Qh7 {[%emt 0:07:20]} 27. Qxh7 {[%emt 0:03:30]} Nxh7 {[%emt 0:00:30]} 28. Bc2 {[%emt 0:00:30]} Ng5 {[%emt 0:00:16]} 29. Bf5+ {[%emt 0:01:30]} Nd7 {[%emt 0:00:02]} 30. Kg2 {[%emt 0:08:02]} Rdf8 {[%emt 0:00:48]} 31. Bxg4 {[%emt 0:04:40]} Rg6 {[%emt 0:00:30]} 32. f7 {[%emt 0:02:44]} Rxf7 {[%emt 0:01:49]} 33. Rxf7 {[%emt 0:01:24]} Nxf7 {[%emt 0:00:01]} 34. Bf5 {[%emt 0:00:00]} Rg7 {[%emt 0:00:45]} 35. Ne4 {[%emt 0:00:28]} Kd8 {[%emt 0:00:30]} 36. Rh1 {[%emt 0:00:30]} Nb6 {[%emt 0:00:30]} 37. Be6 {[%emt 0:00:30]} Ke7 {[%emt 0:00:30]} 38. Nd2 {[%emt 0:01:59]} Ng5 {[%emt 0:00:50]} 39. Rh6 {[%emt 0:00:42]} Na4 {[%emt 0:02:18]} 40. c4 {[%emt 0:00:16]} Nc3 {[%emt 0:00:40]} 41. a3 {[%emt 0:00:25]} Ne2 {[%emt 0:00:25]} 42. Bg4 {[%emt 0:01:08]} Nd4 {[%emt 0:00:30]} 43. Bc8 {[%emt 0:00:26]} b6 {[%emt 0:01:13]} 44. Bxa6 {[%emt 0:00:02]} Nc2 {[%emt 0:02:27]} 45. Bc8 {[%emt 0:02:51]} e4 {[%emt 0:02:24]} 46. Nf1 {[%emt 0:01:19]} e3 {[%emt 0:00:30]} 47. Bg4 {[%emt 0:00:30]} Rf7 {[%emt 0:00:43]} 48. Kg1 {[%emt 0:02:59]} Rg7 {[%emt 0:00:30]} 49. Bd1 {[%emt 0:01:15]} Rf7 {[%emt 0:03:28]} 50. Rg6 {[%emt 0:00:47]} Nf3+ {[%emt 0:03:56]} 51. Bxf3 {[%emt 0:00:04]} Rxf3 {[%emt 0:00:00]} 52. Re6+ {[%emt 0:00:04]} Kf7 {[%emt 0:00:19]} 53. a4 {[%emt 0:00:50]} e2 {[%emt 0:01:29]} 54. Rxe2 {[%emt 0:00:34]} Rc3 {[%emt 0:00:01]} 55. Rf2+ {[%emt 0:00:56]} Kg6 {[%emt 0:00:26]} 56. Rf4 {[%emt 0:00:51]} Nxb4 {[%emt 0:00:11]} 57. Kg2 {[%emt 0:00:34]} Rc2+ {[%emt 0:00:06]} 58. Kh3 {[%emt 0:00:16]} Nd3 {[%emt 0:00:02]} 59. Rg4+ {[%emt 0:00:22]} Kf6 {[%emt 0:00:30]} 60. Rd4 {[%emt 0:00:30]} Nf2+ {[%emt 0:00:30]} 61. Kh4 {[%emt 0:00:30]} Ke5 {[%emt 0:00:30]} 62. Rf4 {[%emt 0:00:15]} Re2 {[%emt 0:00:21]} 63. Nh2 {[%emt 0:00:24]} 1-0

[Event "8th Mersin Open 2024"]
[Site "Mersin"]
[Date "2024.11.14"]
[Round "7"]
[White "Kazimova, Narmin"]
[Black "Tirpan, Ceren"]
[Result "1-0"]
[ECO "B38"]
[WhiteElo "2155"]
[BlackElo "2053"]
[Annotator "RC"]
[PlyCount "155"]
[EventDate "2024.11.10"]
[EventType "swiss"]
[EventCountry "TUR"]
[SourceTitle "playchess.com"]
[Source "ChessBase"]
[SourceQuality "1"]
[TimeControl "5400+30"]

1. Nf3 {[%emt 0:01:00]} c5 {[%emt 0:01:00]} 2. c4 {[%emt 0:00:30]} Nc6 {[%emt 0:00:00]} 3. d4 {[%emt 0:02:30]} cxd4 {[%emt 0:01:00]} 4. Nxd4 {[%emt 0:00:30]} g6 {[%emt 0:00:00]} 5. e4 {[%emt 0:00:30]} Bg7 {[%emt 0:00:00]} 6. Be3 {[%emt 0:00:30]} Nf6 {[%emt 0:00:30]} 7. Nc3 {[%emt 0:00:30]} d6 {[%emt 0:00:30]} 8. Be2 {[%emt 0:00:30]} O-O {[%emt 0:01:30]} 9. O-O {[%emt 0:00:30]} Bd7 {[%emt 0:01:30]} 10. Qd2 {[%emt 0:00:30]} Rc8 {[%emt 0:04:30]} 11. f3 {[%emt 0:03:30]} a6 {[%emt 0:03:30]} 12. Rac1 {[%emt 0:04:30]} Nxd4 {[%emt 0:16:30]} 13. Bxd4 {[%emt 0:00:30]} Be6 {[%emt 0:00:30]} 14. b3 {[%emt 0:02:30]} Qa5 {[%emt 0:05:30]} 15. Be3 {[%emt 0:19:30]} Rfd8 {[%emt 0:06:30]} 16. f4 {[%emt 0:05:30]} Bg4 {[%emt 0:20:30]} 17. Bd3 {[%emt 0:05:30]} Bd7 {[%emt 0:09:30]} 18. h3 {[%emt 0:14:30]} Bc6 {[%emt 0:11:20]} 19. f5 {[%emt 0:18:47]} Rf8 {[%emt 0:03:40]} 20. Nd5 {[%emt 0:00:59]} Qxd2 {[%emt 0:10:36]} 21. Nxe7+ {[%emt 0:00:30]} Kh8 {[%emt 0:00:30]} 22. Bxd2 {[%emt 0:00:00]} Rce8 {[%emt 0:01:58]} 23. Nxc6 {[%emt 0:00:10]} bxc6 {[%emt 0:00:00]} 24. Rce1 {[%emt 0:14:01]} Nd7 {[%emt 0:00:02]} 25. g4 {[%emt 0:00:43]} Bd4+ {[%emt 0:01:23]} 26. Kg2 {[%emt 0:00:30]} Kg7 {[%emt 0:00:00]} 27. Bc2 {[%emt 0:01:30]} f6 {[%emt 0:00:01]} 28. h4 {[%emt 0:00:12]} Ne5 {[%emt 0:01:18]} 29. g5 {[%emt 0:00:53]} c5 {[%emt 0:00:33]} 30. Bd1 {[%emt 0:03:09]} Rf7 {[%emt 0:00:28]} 31. Be2 {[%emt 0:00:30]} Nd7 {[%emt 0:00:23]} 32. Bg4 {[%emt 0:00:58]} Ne5 {[%emt 0:00:06]} 33. Kh3 {[%emt 0:00:04]} Nd3 {[%emt 0:00:36]} 34. Re2 {[%emt 0:00:11]} Rfe7 {[%emt 0:00:00]} 35. Rf3 {[%emt 0:00:42]} Nb2 {[%emt 0:01:20]} 36. Bc1 {[%emt 0:00:30]} Nd1 {[%emt 0:00:30]} 37. gxf6+ {[%emt 0:00:30]} Bxf6 {[%emt 0:00:30]} 38. fxg6 {[%emt 0:00:30]} hxg6 {[%emt 0:00:30]} 39. Re1 {[%emt 0:00:39]} Nb2 {[%emt 0:00:41]} 40. Rxf6 {[%emt 0:00:30]} Nd3 {[%emt 0:00:00]} 41. Rff1 {[%emt 0:00:12]} Nxe1 {[%emt 0:00:10]} 42. Rxe1 {[%emt 0:00:30]} Rxe4 {[%emt 0:00:30]} 43. Rf1 {[%emt 0:00:30]} Re1 {[%emt 0:00:30]} 44. Rxe1 {[%emt 0:00:30]} Rxe1 {[%emt 0:00:30]} 45. Bf4 {[%emt 0:00:09]} Rh1+ {[%emt 0:01:28]} 46. Kg3 {[%emt 0:00:14]} Rg1+ {[%emt 0:00:00]} 47. Kf3 {[%emt 0:00:58]} Ra1 {[%emt 0:00:22]} 48. Bxd6 {[%emt 0:00:39]} Rxa2 {[%emt 0:00:30]} 49. Bxc5 {[%emt 0:00:00]} Kf7 {[%emt 0:00:35]} 50. Bd7 {[%emt 0:00:50]} Rd2 {[%emt 0:00:47]} 51. Bc8 {[%emt 0:00:28]} a5 {[%emt 0:00:33]} 52. Bb6 {[%emt 0:00:33]} Rd3+ {[%emt 0:00:12]} 53. Ke4 {[%emt 0:00:30]} Rxb3 {[%emt 0:00:37]} 54. Bxa5 {[%emt 0:00:30]} Rb8 {[%emt 0:00:00]} 55. Bd7 {[%emt 0:00:39]} Rh8 {[%emt 0:00:20]} 56. Be1 {[%emt 0:00:15]} Ke7 {[%emt 0:00:12]} 57. Bg4 {[%emt 0:00:47]} Kd6 {[%emt 0:01:23]} 58. Kd4 {[%emt 0:00:30]} Kc6 {[%emt 0:00:30]} 59. Bf3+ {[%emt 0:00:30]} Kb6 {[%emt 0:00:30]} 60. c5+ {[%emt 0:00:30]} Kb5 {[%emt 0:00:00]} 61. c6 {[%emt 0:00:12]} Rg8 {[%emt 0:00:52]} 62. Bg3 {[%emt 0:01:10]} g5 {[%emt 0:00:30]} 63. hxg5 {[%emt 0:00:00]} Rxg5 {[%emt 0:01:21]} 64. c7 {[%emt 0:00:00]} Rg8 {[%emt 0:00:36]} 65. Bb7 {[%emt 0:00:13]} Kb6 {[%emt 0:00:04]} 66. c8=Q {[%emt 0:00:08]} Rxc8 {[%emt 0:00:14]} 67. Bxc8 {[%emt 0:00:30]} Kc6 {[%emt 0:00:30]} 68. Kc4 {[%emt 0:00:30]} Kb6 {[%emt 0:00:30]} 69. Bd6 {[%emt 0:00:30]} Kc6 {[%emt 0:00:30]} 70. Bc5 {[%emt 0:00:30]} Kc7 {[%emt 0:00:30]} 71. Ba6 {[%emt 0:00:30]} Kd7 {[%emt 0:00:30]} 72. Kd5 {[%emt 0:00:30]} Kc7 {[%emt 0:00:30]} 73. Bb5 {[%emt 0:00:30]} Kb7 {[%emt 0:00:30]} 74. Kd6 {[%emt 0:00:00]} Kc8 {[%emt 0:00:00]} 75. Kc6 {[%emt 0:00:00]} Kd8 {[%emt 0:00:00]} 76. Kb6 {[%emt 0:00:00]} Kc8 {[%emt 0:00:00]} 77. Be7 {[%emt 0:00:00]} Kb8 {[%emt 0:00:00]} 78. Ba6 {[%emt 0:00:00]} 1-0

[Event "8th Mersin Open 2024"]
[Site "Mersin"]
[Date "2024.11.14"]
[Round "7"]
[White "Biriya, Mohammadamin"]
[Black "Primbetov, Kazbek"]
[Result "1-0"]
[ECO "E11"]
[WhiteElo "2139"]
[BlackElo "2059"]
[Annotator "RC"]
[PlyCount "69"]
[EventDate "2024.11.10"]
[EventType "swiss"]
[EventCountry "TUR"]
[SourceTitle "playchess.com"]
[Source "ChessBase"]
[SourceQuality "1"]
[TimeControl "5400+30"]

1. d4 {[%emt 0:01:00]} Nf6 {[%emt 0:03:00]} 2. c4 {[%emt 0:00:00]} e6 {[%emt 0:01:30]} 3. Nf3 {[%emt 0:00:00]} Bb4+ {[%emt 0:01:30]} 4. Bd2 {[%emt 0:00:30]} a5 {[%emt 0:00:00]} 5. g3 {[%emt 0:00:30]} O-O {[%emt 0:05:00]} 6. Bg2 {[%emt 0:00:00]} d5 {[%emt 0:00:30]} 7. Qc1 {[%emt 0:01:00]} Nbd7 {[%emt 0:17:30]} 8. O-O {[%emt 0:03:30]} dxc4 {[%emt 0:05:30]} 9. Bxb4 {[%emt 0:04:30]} axb4 {[%emt 0:00:30]} 10. Qxc4 {[%emt 0:00:00]} Ra4 {[%emt 0:02:30]} 11. Rc1 {[%emt 0:00:00]} c6 {[%emt 0:00:00]} 12. Nbd2 {[%emt 0:00:30]} Qe7 {[%emt 0:11:00]} 13. Ne5 {[%emt 0:14:30]} Qd6 {[%emt 0:08:30]} 14. Ndf3 {[%emt 0:09:30]} Nb6 {[%emt 0:12:30]} 15. Qb3 {[%emt 0:01:30]} Ra6 {[%emt 0:02:30]} 16. Nd3 {[%emt 0:00:30]} Nbd5 {[%emt 0:05:30]} 17. Nc5 {[%emt 0:04:30]} Ra7 {[%emt 0:01:50]} 18. e4 {[%emt 0:00:30]} b6 {[%emt 0:00:30]} 19. e5 {[%emt 0:00:00]} Qd8 {[%emt 0:01:26]} 20. exf6 {[%emt 0:00:00]} bxc5 {[%emt 0:00:30]} 21. fxg7 {[%emt 0:00:00]} Kxg7 {[%emt 0:00:19]} 22. Rxc5 {[%emt 0:00:00]} Bd7 {[%emt 0:01:12]} 23. Ne5 {[%emt 0:00:30]} Qb6 {[%emt 0:00:28]} 24. Qf3 {[%emt 0:00:30]} Be8 {[%emt 0:00:53]} 25. Bf1 {[%emt 0:03:30]} f5 {[%emt 0:03:34]} 26. Nd3 {[%emt 0:00:30]} f4 {[%emt 0:01:12]} 27. Qg4+ {[%emt 0:01:30]} Bg6 {[%emt 0:00:02]} 28. Ne5 {[%emt 0:00:00]} Rf6 {[%emt 0:00:54]} 29. Bg2 {[%emt 0:00:00]} Rf5 {[%emt 0:01:52]} 30. Bxd5 {[%emt 0:01:30]} cxd5 {[%emt 0:00:30]} 31. Rac1 {[%emt 0:03:30]} Kh6 {[%emt 0:06:22]} 32. Qh4+ {[%emt 0:00:30]} Bh5 {[%emt 0:00:58]} 33. g4 {[%emt 0:00:30]} Rg7 {[%emt 0:00:30]} 34. h3 {[%emt 0:00:30]} Rgg5 {[%emt 0:00:30]} 35. Kh2 {[%emt 0:01:30]} 1-0

[Event "8th Mersin Open 2024"]
[Site "Mersin"]
[Date "2024.11.14"]
[Round "7"]
[White "Bayramov, Vugar"]
[Black "Golshaani, Taha"]
[Result "1-0"]
[ECO "A34"]
[WhiteElo "2133"]
[BlackElo "2026"]
[Annotator "RC"]
[PlyCount "91"]
[EventDate "2024.11.10"]
[EventType "swiss"]
[EventCountry "TUR"]
[SourceTitle "playchess.com"]
[Source "ChessBase"]
[SourceQuality "1"]
[TimeControl "5400+30"]

1. d4 {[%emt 0:01:00]} Nf6 {[%emt 0:01:00]} 2. Nf3 {[%emt 0:00:00]} g6 {[%emt 0:00:30]} 3. c4 {[%emt 0:00:00]} Bg7 {[%emt 0:00:30]} 4. Nc3 {[%emt 0:00:30]} d5 {[%emt 0:00:00]} 5. cxd5 {[%emt 0:00:00]} Nxd5 {[%emt 0:00:00]} 6. Bg5 {[%emt 0:00:00]} Nxc3 {[%emt 0:05:30]} 7. bxc3 {[%emt 0:00:00]} c5 {[%emt 0:00:00]} 8. e3 {[%emt 0:00:00]} O-O {[%emt 0:04:00]} 9. Be2 {[%emt 0:02:30]} Nd7 {[%emt 0:03:30]} 10. O-O {[%emt 0:02:30]} Re8 {[%emt 0:04:30]} 11. Qb3 {[%emt 0:03:30]} Qc7 {[%emt 0:04:30]} 12. Bc4 {[%emt 0:07:30]} e6 {[%emt 0:00:30]} 13. Bf4 {[%emt 0:04:30]} Qa5 {[%emt 0:06:30]} 14. Rab1 {[%emt 0:03:30]} Qd8 {[%emt 0:13:30]} 15. Rfd1 {[%emt 0:04:30]} Qe7 {[%emt 0:10:30]} 16. a4 {[%emt 0:15:30]} b6 {[%emt 0:18:30]} 17. d5 {[%emt 0:02:30]} Nf6 {[%emt 0:03:30]} 18. d6 {[%emt 0:03:30]} Qb7 {[%emt 0:00:30]} 19. a5 {[%emt 0:12:30]} Bd7 {[%emt 0:05:31]} 20. Ne5 {[%emt 0:07:30]} Rab8 {[%emt 0:02:04]} 21. a6 {[%emt 0:02:30]} Qc8 {[%emt 0:01:29]} 22. Nxd7 {[%emt 0:08:54]} Nxd7 {[%emt 0:00:50]} 23. Bb5 {[%emt 0:00:30]} h6 {[%emt 0:00:30]} 24. Qa4 {[%emt 0:00:30]} Rd8 {[%emt 0:01:25]} 25. c4 {[%emt 0:04:52]} Kh7 {[%emt 0:05:12]} 26. h3 {[%emt 0:01:13]} Ne5 {[%emt 0:00:30]} 27. Qc2 {[%emt 0:00:30]} Nd7 {[%emt 0:01:43]} 28. Qe4 {[%emt 0:02:25]} Kg8 {[%emt 0:00:36]} 29. Rd2 {[%emt 0:00:34]} Re8 {[%emt 0:00:53]} 30. Rbd1 {[%emt 0:00:30]} f5 {[%emt 0:00:30]} 31. Qc2 {[%emt 0:00:30]} Rf8 {[%emt 0:02:50]} 32. Qd3 {[%emt 0:03:15]} Rf7 {[%emt 0:01:11]} 33. Qe2 {[%emt 0:00:23]} Qd8 {[%emt 0:00:54]} 34. Bg3 {[%emt 0:01:38]} e5 {[%emt 0:00:30]} 35. f3 {[%emt 0:00:30]} Qf6 {[%emt 0:01:12]} 36. Qd3 {[%emt 0:00:22]} h5 {[%emt 0:01:47]} 37. Qd5 {[%emt 0:00:47]} Rd8 {[%emt 0:00:25]} 38. Qc6 {[%emt 0:01:04]} Nb8 {[%emt 0:01:35]} 39. Qc7 {[%emt 0:00:16]} Qg5 {[%emt 0:00:19]} 40. Bf2 {[%emt 0:02:24]} Bf8 {[%emt 0:00:30]} 41. d7 {[%emt 0:00:30]} Qf6 {[%emt 0:00:30]} 42. Qxa7 {[%emt 0:00:30]} Be7 {[%emt 0:00:30]} 43. Qc7 {[%emt 0:00:30]} Nxa6 {[%emt 0:00:30]} 44. Bxa6 {[%emt 0:00:30]} g5 {[%emt 0:00:30]} 45. Bb7 {[%emt 0:00:21]} Kh7 {[%emt 0:00:00]} 46. Qc6 {[%emt 0:00:14]} 1-0

[Event "8th Mersin Open 2024"]
[Site "Mersin"]
[Date "2024.11.14"]
[Round "7"]
[White "Mohannad, Farhan"]
[Black "Ughuzov, Ravan"]
[Result "0-1"]
[ECO "E11"]
[WhiteElo "2115"]
[BlackElo "2047"]
[Annotator "RC"]
[PlyCount "106"]
[EventDate "2024.11.10"]
[EventType "swiss"]
[EventCountry "TUR"]
[SourceTitle "playchess.com"]
[Source "ChessBase"]
[SourceQuality "1"]
[TimeControl "5400+30"]

1. d4 {[%emt 0:01:00]} Nf6 {[%emt 0:01:00]} 2. Nf3 {[%emt 0:00:30]} e6 {[%emt 0:00:30]} 3. c4 {[%emt 0:00:00]} Bb4+ {[%emt 0:00:30]} 4. Bd2 {[%emt 0:00:00]} Qe7 {[%emt 0:00:00]} 5. g3 {[%emt 0:00:00]} Nc6 {[%emt 0:00:00]} 6. Bg2 {[%emt 0:00:00]} Bxd2+ {[%emt 0:00:30]} 7. Nbxd2 {[%emt 0:00:00]} d6 {[%emt 0:00:00]} 8. O-O {[%emt 0:00:00]} O-O {[%emt 0:00:00]} 9. e4 {[%emt 0:00:30]} e5 {[%emt 0:00:30]} 10. d5 {[%emt 0:00:30]} Nb8 {[%emt 0:00:30]} 11. b4 {[%emt 0:00:30]} a5 {[%emt 0:04:30]} 12. a3 {[%emt 0:00:30]} c6 {[%emt 0:00:30]} 13. Qb3 {[%emt 0:02:30]} cxd5 {[%emt 0:03:30]} 14. cxd5 {[%emt 0:00:00]} b5 {[%emt 0:09:30]} 15. h3 {[%emt 0:16:00]} Bd7 {[%emt 0:02:30]} 16. Rfc1 {[%emt 0:00:30]} Qd8 {[%emt 0:02:30]} 17. Qe3 {[%emt 0:07:30]} axb4 {[%emt 0:03:30]} 18. axb4 {[%emt 0:00:00]} Na6 {[%emt 0:00:00]} 19. Rab1 {[%emt 0:03:00]} Qb8 {[%emt 0:01:00]} 20. Ne1 {[%emt 0:01:30]} Rc8 {[%emt 0:03:30]} 21. Nd3 {[%emt 0:00:30]} Ne8 {[%emt 0:01:30]} 22. f4 {[%emt 0:03:30]} f6 {[%emt 0:00:30]} 23. Kh2 {[%emt 0:00:30]} Qa7 {[%emt 0:03:30]} 24. Qxa7 {[%emt 0:05:30]} Rxa7 {[%emt 0:00:30]} 25. Rxc8 {[%emt 0:00:30]} Bxc8 {[%emt 0:00:00]} 26. Rc1 {[%emt 0:00:00]} Rc7 {[%emt 0:01:00]} 27. Rxc7 {[%emt 0:00:00]} Nexc7 {[%emt 0:00:30]} 28. Nb3 {[%emt 0:00:00]} Kf7 {[%emt 0:01:30]} 29. Kg1 {[%emt 0:00:00]} Na8 {[%emt 0:00:30]} 30. Na5 {[%emt 0:11:30]} Nb6 {[%emt 0:02:30]} 31. fxe5 {[%emt 0:00:30]} fxe5 {[%emt 0:00:30]} 32. Nc6 {[%emt 0:00:30]} Nc4 {[%emt 0:01:30]} 33. Kf2 {[%emt 0:01:30]} Bd7 {[%emt 0:01:30]} 34. Na7 {[%emt 0:04:30]} Ke7 {[%emt 0:00:30]} 35. Bf3 {[%emt 0:00:30]} Nd2 {[%emt 0:02:30]} 36. Bg2 {[%emt 0:04:30]} Kd8 {[%emt 0:00:30]} 37. Ke1 {[%emt 0:04:30]} Nb3 {[%emt 0:01:30]} 38. g4 {[%emt 0:19:10]} Kc7 {[%emt 0:00:30]} 39. g5 {[%emt 0:01:55]} Nd4 {[%emt 0:02:30]} 40. Kd2 {[%emt 0:00:19]} Nb8 {[%emt 0:01:30]} 41. h4 {[%emt 0:00:30]} Kb6 {[%emt 0:00:30]} 42. Nc6 {[%emt 0:00:30]} Bxc6 {[%emt 0:00:30]} 43. dxc6 {[%emt 0:00:30]} Nbxc6 {[%emt 0:02:30]} 44. Ke3 {[%emt 0:04:31]} Nc2+ {[%emt 0:01:30]} 45. Kd2 {[%emt 0:00:06]} N2xb4 {[%emt 0:03:30]} 46. Nf2 {[%emt 0:00:05]} Nd8 {[%emt 0:02:30]} 47. Bh3 {[%emt 0:00:30]} Nbc6 {[%emt 0:00:30]} 48. Bf5 {[%emt 0:00:30]} g6 {[%emt 0:00:30]} 49. h5 {[%emt 0:00:30]} Ne7 {[%emt 0:00:30]} 50. Ng4 {[%emt 0:07:05]} Nf7 {[%emt 0:01:30]} 51. Nf6 {[%emt 0:00:18]} Nxg5 {[%emt 0:01:30]} 52. Nxh7 {[%emt 0:00:30]} Nxh7 {[%emt 0:00:00]} 53. hxg6 {[%emt 0:00:06]} Nf6 {[%emt 0:00:00]} 0-1